Workbook

Sheet Folha1
B2: Exemplo. Venda de seguros da Cosmic
B3: Lanç. Moeda | C3: NPA | D3: Result. Moeda | E3: Int. Seguro | F3: Lanç. | G3: NPA | H3: Resultado | I3: Valor Seguro (Mil €) | J3: Valor | K3: Auxiliar1 | L3: Auxiliar2 | M3: Auxiliar3
B4: N | D4: F=0-0,5; C=0,5-1 | E4: S=1;N=0 | F4: Dado? | G4: Dado | H4: Dado | I4: "0"; "10"; "20" | J4: € | K4: Venda | L4: Venda=10 | M4: Venda=20
B5: 1 | C5: =RAND() -> 0.2723759937 | D5: =IF(C5<0.5, "F", "C") -> F | E5: =IF(D5="F", "Sim", "Não") -> Sim | F5: =IF(E5="Não", "Não", "Sim") -> Sim | G5: =IF(F5="Não", "Não", RAND()) -> 0.4828591669 | H5: =IF(G5="Não",0,IF(G5<1/6,1,IF(G5<2/6,2,IF(G5<3/6,3,IF(G5<4/6,4,IF(G5<5/6,5,6)))))) -> 3 | I5: =IF(H5<4,0, IF(H5<6, 10,20)) -> 0 | J5: =+I5*1000 -> 0 | K5: =IF(I5=0,0, 1) -> 0 | L5: =IF(I5=10,1, 0) -> 0 | M5: =IF(I5=20,1, 0) -> 0
B6: =+B5+1 -> 2 | C6: =RAND() -> 0.08249913596 | D6: =IF(C6<0.5, "F", "C") -> F | E6: =IF(D6="F", "Sim", "Não") -> Sim | F6: =IF(E6="Não", "Não", "Sim") -> Sim | G6: =IF(F6="Não", "Não", RAND()) -> 0.2587331407 | H6: =IF(G6="Não",0,IF(G6<1/6,1,IF(G6<2/6,2,IF(G6<3/6,3,IF(G6<4/6,4,IF(G6<5/6,5,6)))))) -> 2 | I6: =IF(H6<4,0, IF(H6<6, 10,20)) -> 0 | J6: =+I6*1000 -> 0 | K6: =IF(I6=0,0, 1) -> 0 | L6: =IF(I6=10,1, 0) -> 0 | M6: =IF(I6=20,1, 0) -> 0
B7: =+B6+1 -> 3 | C7: =RAND() -> 0.8265919118 | D7: =IF(C7<0.5, "F", "C") -> C | E7: =IF(D7="F", "Sim", "Não") -> Não | F7: =IF(E7="Não", "Não", "Sim") -> Não | G7: =IF(F7="Não", "Não", RAND()) -> Não | H7: =IF(G7="Não",0,IF(G7<1/6,1,IF(G7<2/6,2,IF(G7<3/6,3,IF(G7<4/6,4,IF(G7<5/6,5,6)))))) -> 0 | I7: =IF(H7<4,0, IF(H7<6, 10,20)) -> 0 | J7: =+I7*1000 -> 0 | K7: 0 | L7: 0 | M7: 0
B8: 4 | C8: 0.8231760689 | D8: C | E8: Não | F8: Não | G8: Não | H8: 0 | I8: 0 | J8: 0 | K8: 0 | L8: 0 | M8: 0
B9: 5 | C9: 0.02249141158 | D9: F | E9: Sim | F9: Sim | G9: 0.1348455171 | H9: 1 | I9: 0 | J9: 0 | K9: 0 | L9: 0 | M9: 0
B10: 6 | C10: 0.3598829777 | D10: F | E10: Sim | F10: Sim | G10: 0.9024732259 | H10: 6 | I10: 20 | J10: 20000 | K10: 1 | L10: 0 | M10: 1
B11: 7 | C11: 0.167820907 | D11: F | E11: Sim | F11: Sim | G11: 0.3204756194 | H11: 2 | I11: 0 | J11: 0 | K11: 0 | L11: 0 | M11: 0
B12: 8 | C12: 0.9054453681 | D12: C | E12: Não | F12: Não | G12: Não | H12: 0 | I12: 0 | J12: 0 | K12: 0 | L12: 0 | M12: 0
B13: 9 | C13: 0.8094054965 | D13: C | E13: Não | F13: Não | G13: Não | H13: 0 | I13: 0 | J13: 0 | K13: 0 | L13: 0 | M13: 0
B14: 10 | C14: 0.1538003014 | D14: F | E14: Sim | F14: Sim | G14: 0.7575650995 | H14: 5 | I14: 10 | J14: 10000 | K14: 1 | L14: 1 | M14: 0
B15: 11 | C15: 0.5515868907 | D15: C | E15: Não | F15: Não | G15: Não | H15: 0 | I15: 0 | J15: 0 | K15: 0 | L15: 0 | M15: 0
B16: 12 | C16: 0.9285646105 | D16: C | E16: Não | F16: Não | G16: Não | H16: 0 | I16: 0 | J16: 0 | K16: 0 | L16: 0 | M16: 0
B17: 13 | C17: 0.909329945 | D17: C | E17: Não | F17: Não | G17: Não | H17: 0 | I17: 0 | J17: 0 | K17: 0 | L17: 0 | M17: 0
B18: 14 | C18: 0.3256064186 | D18: F | E18: Sim | F18: Sim | G18: 0.1294334631 | H18: 1 | I18: 0 | J18: 0 | K18: 0 | L18: 0 | M18: 0
B19: 15 | C19: 0.5678216079 | D19: C | E19: Não | F19: Não | G19: Não | H19: 0 | I19: 0 | J19: 0 | K19: 0 | L19: 0 | M19: 0
B20: 16 | C20: 0.8524391563 | D20: C | E20: Não | F20: Não | G20: Não | H20: 0 | I20: 0 | J20: 0 | K20: 0 | L20: 0 | M20: 0
B21: 17 | C21: 0.7339112065 | D21: C | E21: Não | F21: Não | G21: Não | H21: 0 | I21: 0 | J21: 0 | K21: 0 | L21: 0 | M21: 0
B22: 18 | C22: 0.2187593537 | D22: F | E22: Sim | F22: Sim | G22: 0.6217301538 | H22: 4 | I22: 10 | J22: 10000 | K22: 1 | L22: 1 | M22: 0
B23: 19 | C23: 0.1999907301 | D23: F | E23: Sim | F23: Sim | G23: 0.1202164407 | H23: 1 | I23: 0 | J23: 0 | K23: 0 | L23: 0 | M23: 0
B24: 20 | C24: 0.7902597425 | D24: C | E24: Não | F24: Não | G24: Não | H24: 0 | I24: 0 | J24: 0 | K24: 0 | L24: 0 | M24: 0
K25: =SUM(K5:K24) -> 3 | L25: =SUM(L5:L24) -> 2 | M25: =SUM(M5:M24) -> 1
D26: Comparação de resultados teóricos e resultados simulados
D27: Probab. | E27: Probab. | F27: Dada uma | G27: Venda
D28: Venda | E28: Não Venda | F28: P(venda=10) | G28: P(venda=20) | I28: Valor Esperado | K28: Amostra | L28: P(Venda) | M28: P(V=10/V) | N28: P(V=20/V) | O28: V. Esp
B29: Simulados | D29: =+K25/B24 -> 0.15 | E29: =1-D29 -> 0.85 | F29: =+L25/K25 -> 0.6666666667 | G29: =+M25/K25 -> 0.3333333333 | I29: =F29*10000+G29*20000 -> 13333.33333 | L29: =AVERAGE(L31:L41) -> 0.2181818182 | M29: =AVERAGE(M31:M41) -> 0.7818181818 | N29: =AVERAGE(N31:N41) -> 0.6239177489 | O29: =AVERAGE(O31:O41) -> 13760.82251
B30: teóricos | D30: =0.5*0.5 -> 0.25 | E30: =0.5+0.5*0.5 -> 0.75 | F30: =+(1/3*1/2)/(1/3*1/2+1/6*1/2) -> 0.6666666667 | G30: =+(1/6*1/2)/(1/3*1/2+1/6*1/2) -> 0.3333333333 | I30: =F30*10000+G30*20000 -> 13333.33333
L31: =D29 -> 0.15 | M31: =E29 -> 0.85 | N31: =F29 -> 0.6666666667 | O31: =I29 -> 13333.33333
K32: 1 | L32: 0.15 | M32: 0.85 | N32: 1 | O32: 10000
K33: =+K32+1 -> 2 | L33: 0.1 | M33: 0.9 | N33: 0 | O33: 20000
K34: =+K33+1 -> 3 | L34: 0.25 | M34: 0.75 | N34: 0.2 | O34: 18000
K35: 4 | L35: 0.4 | M35: 0.6 | N35: 0.625 | O35: 13750
K36: 5 | L36: 0.3 | M36: 0.7 | N36: 0.6666666667 | O36: 13333.33333
K37: 6 | L37: 0.15 | M37: 0.85 | N37: 1 | O37: 10000
K38: 7 | L38: 0.15 | M38: 0.85 | N38: 0.6666666667 | O38: 13333.33333
K39: 8 | L39: 0.25 | M39: 0.75 | N39: 0.8 | O39: 12000
K40: 9 | L40: 0.15 | M40: 0.85 | N40: 0.6666666667 | O40: 13333.33333
K41: =+K40+1 -> 10 | L41: 0.35 | M41: 0.65 | N41: 0.5714285714 | O41: 14285.71429

Sheet Folha2

Sheet Folha3
